fUSD/lending_fUSD_20250511
["ID","MTS","AMOUNT","RATE_DAILY","PERIOD"]
[360771636,1747003833161,-1000.0,0.00014934,2]
[360771637,1747003833171,-150.0,0.00014935,2]
[360771638,1747003833181,-150.0,0.00014936,2]
[360771639,1747003833190,-150.0,0.00014938,2]
[360771640,1747003833202,-1000.0,0.00014938,2]
[360771641,1747003833212,-150.0,0.0001494,2]
[360771642,1747003833222,-1000.0,0.00014941,2]
[360771643,1747003833232,-1000.0,0.00014942,2]
[360771644,1747003833241,-150.0,0.00014945,2]
[360771645,1747003833251,-150.0,0.00014946,2]
[360771646,1747003833260,-150.0,0.0001495,2]
[360771647,1747003833270,-150.0,0.0001495,2]
[360771648,1747003833280,-150.0,0.00014952,2]
[360771649,1747003833289,-150.0,0.00014952,2]
[360771650,1747003833298,-1000.0,0.00014952,2]
[360771651,1747003833308,-150.0,0.00014953,2]
[360771652,1747003833318,-150.0,0.00014955,2]
[360771653,1747003833327,-150.0,0.00014955,2]
[360771654,1747003833338,-150.0,0.00014958,2]
[360771655,1747003833350,-150.0,0.00014959,2]
[360771656,1747003833362,-150.0,0.0001496,2]
[360771657,1747003833372,-1000.0,0.00014963,2]
[360771658,1747003833382,-150.0,0.00014966,2]
[360771659,1747003833393,-150.0,0.0001497,2]
[360771660,1747003833404,-150.0,0.00014971,2]
[360771661,1747003833414,-150.0,0.00014971,2]
[360771662,1747003833423,-500.0,0.00014973,2]
[360771663,1747003833433,-635.52069171,0.00014973,2]
[360771664,1747003833442,-500.0,0.00014973,2]
[360771665,1747003833452,-500.0,0.00014973,2]
[360771666,1747003833462,-500.0,0.00014973,2]
[360771667,1747003833471,-500.0,0.00014973,2]
[360771668,1747003833481,-154.31402777,0.00014973,2]
[360771669,1747003833491,-150.0,0.00014973,2]
[360771670,1747003833500,-150.0,0.00014982,2]
[360771671,1747003833510,-150.0,0.00014984,2]
[360771672,1747003833519,-55290.6137466,0.00014988,2]
[360771673,1747003833529,-15307.9684458,0.00014988,2]
[360771674,1747003833540,-809.3829172,0.00014988,2]
[360771675,1747003833549,-97319.898,0.00014988,2]
[360771676,1747003833560,-174.76983,0.00014988,13]
[360771677,1747003833569,-1580.11936172,0.0001499,2]
[360771678,1747003833817,-327.88063828,0.0001499,2]
[360771679,1747003833827,-357.171224,0.0001499,2]
[360771680,1747003833837,-357.171224,0.0001499,2]
[360771681,1747003833846,-151.0,0.0001499,2]
[360771682,1747003833856,-169.839453,0.0001499,2]
[360771683,1747003833865,-169.839453,0.0001499,2]
[360771684,1747003833875,-209.962126,0.0001499,2]
[360771685,1747003833884,-209.962126,0.0001499,2]
[360771686,1747003833896,-151.0,0.0001499,2]
[360771687,1747003833906,-238.172086,0.0001499,2]
[360771688,1747003833915,-238.172086,0.0001499,2]
[360771689,1747003833925,-182.355566,0.0001499,2]
[360771690,1747003833935,-182.355566,0.0001499,2]
[360771691,1747003833945,-929.0,0.00014997,2]
[360771692,1747003833955,-436.35782813,0.00014997,2]
[360771693,1747003834984,-867.64217187,0.00014997,2]
[360771694,1747003834998,-798.0,0.00014997,2]
[360771695,1747003835014,-134.35782814,0.00014997,2]
[360771743,1747003839282,-492.64217186,0.00014997,2]
[360771744,1747003839292,-583.0,0.00014997,2]
[360771745,1747003839302,-1455.0,0.00014997,2]
[360771746,1747003839311,-918.0,0.00014997,2]
[360771747,1747003839321,-1248.0,0.00014997,2]
[360771748,1747003839330,-552.0,0.00014997,2]
[360771749,1747003839340,-4026.0,0.00014997,2]
[360771750,1747003839349,-835.0,0.00014997,2]
[360771751,1747003839358,-6816.0,0.00014997,2]
[360771752,1747003839367,-879.0,0.00014997,2]
[360771753,1747003839376,-303.0,0.00014997,2]
[360771754,1747003839386,-3321.48703,0.00014999,2]
[360771755,1747003839395,-3321.48703,0.00014999,2]
[360771756,1747003839406,-3692.500644,0.00014999,2]
[360771757,1747003839416,-3692.500644,0.00014999,2]
[360771758,1747003839425,-151.0,0.00014999,2]
[360771759,1747003839435,-151.0,0.00014999,2]
[360771760,1747003839444,-151.0,0.00014999,2]
[360771761,1747003839453,-343.91002,0.00014999,2]
[360771762,1747003839463,-343.91002,0.00014999,2]
[360771763,1747003839472,-151.0,0.00014999,2]
[360771764,1747003839482,-151.0,0.00014999,2]
[360771765,1747003839491,-201.166587,0.00014999,2]
[360771766,1747003839501,-191.7,0.00014999,2]
[360771767,1747003839510,-201.166587,0.00014999,2]
[360771768,1747003839519,-191.7,0.00014999,2]
[360771769,1747003839529,-300.0,0.00014999,2]
[360771770,1747003839539,-300.0,0.00014999,2]
[360771771,1747003839548,-300.0,0.00014999,2]
[360771772,1747003839557,-534.0,0.00014999,2]
[360771773,1747003839567,-250.18007473,0.00014999,2]
[360771774,1747003839576,-55831.33817136,0.00015,2]
[360771775,1747003839604,-34381.92337767,0.00015,2]
[360771776,1747003839615,-375.04193946,0.00015,2]
[360771777,1747003839626,-26524.57871615,0.00015,2]
[360771778,1747003840366,-4737.53434266,0.00015,2]
[360771781,1747003843312,-5059.38227803,0.00015,2]
[360771782,1747003843425,-2516.26375,0.00015,2]
[360771790,1747003846598,-24959.97999977,0.00015,2]
[360771791,1747003846612,-5150.0,0.00015,2]
[360771792,1747003846715,-560.62670991,0.00015,2]
[360771793,1747003983105,2726.21,0.00014175,2]
[360771794,1747004125728,814.5,0.00013699,2]
[360771795,1747004342071,174.17,0.00014014,2]
[360771796,1747004409458,2021.69,0.00028,120]
[360771797,1747004493796,243.14,0.00013893,2]
[360771798,1747004618315,200.3,0.00028,120]
[360771801,1747004756652,1272.47,0.00011973,2]
[360771802,1747004759645,-269.29409299,0.00014237,2]
[360771803,1747004774987,-300.0,0.00014237,2]
[360771804,1747004790032,-314.08715312,0.00014237,2]
[360771805,1747004797595,250.0,0.00013887,2]
[360771806,1747004800140,150.0,0.00014201,2]
[360771807,1747004805859,-258.80557484,0.00014236,2]
[360771808,1747004805883,-59.13929428,0.00014237,2]
[360771814,1747004820001,-158.3980572,0.00014237,2]
[360771816,1747004834988,-171.55140241,0.00014237,2]
[360771861,1747004956045,1000.0,0.00013889,2]
[360771902,1747004987524,-250.0,0.0001423,2]
[360771905,1747004999982,-234.96823994,0.0001423,2]
[360771909,1747005016212,-257.41866794,0.00014229,2]
[360771912,1747005029999,-164.249341,0.00014229,2]
[360771913,1747005032026,-417.53020642,0.00014229,2]
[360771914,1747005032231,-360.80178464,0.00014229,2]
[360771915,1747005032240,-300.0,0.00014229,2]
[360771916,1747005032249,-188.3891832,0.0001423,2]
[360771952,1747005038048,-164.249341,0.00014228,2]
[360771953,1747005038059,-26674.94234027,0.0001423,2]
[360771954,1747005038141,-16343.17766995,0.0001423,2]
[360771955,1747005038151,-250.0,0.00014473,2]
[360771956,1747005038161,-250.0,0.00014628,2]
[360771957,1747005038175,-150.0,0.00014727,2]
[360771958,1747005038194,-150.0,0.00014732,2]
[360771959,1747005038210,-150.0,0.00014735,2]
[360771960,1747005038220,-150.0,0.00014745,2]
[360771961,1747005038229,-150.0,0.00014753,2]
[360771962,1747005038239,-151.0,0.00014755,2]
[360771963,1747005038250,-668.65185757,0.00014755,2]
[360771964,1747005038259,-207.4,0.00014755,2]
[360771965,1747005038272,-150.0,0.00014764,2]
[360771967,1747005038282,-150.0,0.00014764,2]
[360771968,1747005038292,-150.0,0.00014765,2]
[360771971,1747005038302,-150.0,0.00014768,2]
[360771972,1747005038311,-150.0,0.0001478,2]
[360771973,1747005038321,-150.0,0.00014785,2]
[360771974,1747005038330,-150.0,0.00014785,2]
[360771975,1747005038340,-150.0,0.0001479,2]
[360771976,1747005038350,-150.0,0.00014793,2]
[360771978,1747005038359,-150.0,0.00014793,2]
[360771979,1747005038369,-384.69629503,0.00014795,2]
[360771981,1747005038379,-150.0,0.00014798,2]
[360771983,1747005038388,-150.0,0.00014804,2]
[360771985,1747005038398,-150.0,0.00014805,2]
[360771987,1747005038408,-150.0,0.00014805,2]
[360771989,1747005038417,-150.0,0.00014806,2]
[360771991,1747005038427,-150.0,0.00014806,2]
[360771993,1747005038437,-150.0,0.00014807,2]
[360771995,1747005038446,-150.0,0.00014815,2]
[360771997,1747005038456,-150.0,0.00014819,2]
[360771999,1747005038465,-150.0,0.00014822,2]
[360772001,1747005038475,-150.0,0.00014825,2]
[360772003,1747005038484,-150.0,0.00014827,2]
[360772005,1747005038494,-150.0,0.00014828,2]
[360772007,1747005038504,-150.0,0.00014828,2]
[360772009,1747005038514,-150.0,0.0001483,2]
[360772011,1747005038523,-150.0,0.0001483,2]
[360772013,1747005038534,-150.0,0.00014832,2]
[360772014,1747005038544,-150.0,0.00014833,2]
[360772015,1747005038553,-150.0,0.0001484,2]
[360772016,1747005038563,-150.0,0.00014853,2]
[360772017,1747005038572,-150.0,0.00014856,2]
[360772018,1747005038583,-150.0,0.00014859,2]
[360772019,1747005038592,-150.0,0.0001486,2]
[360772020,1747005038603,-1000.0,0.00014862,2]
[360772021,1747005038614,-150.0,0.00014865,2]
[360772022,1747005038624,-150.0,0.00014866,2]
[360772023,1747005038633,-150.0,0.00014868,2]
[360772024,1747005038642,-150.0,0.00014869,2]
[360772025,1747005038651,-150.0,0.0001487,2]
[360772026,1747005038661,-150.0,0.00014871,2]
[360772027,1747005038671,-150.0,0.00014871,2]
[360772028,1747005038681,-150.0,0.00014872,2]
[360772029,1747005038690,-150.0,0.00014875,2]
[360772030,1747005038700,-150.0,0.00014877,2]
[360772031,1747005038709,-150.0,0.00014879,2]
[360772032,1747005038719,-150.0,0.00014886,2]
[360772033,1747005038728,-150.0,0.00014886,2]
[360772034,1747005038738,-150.0,0.00014886,2]
[360772035,1747005038747,-150.0,0.00014887,2]
[360772036,1747005038757,-1248.0,0.00014887,2]
[360772037,1747005038766,-552.0,0.00014887,2]
[360772038,1747005038776,-1145.0,0.00014887,2]
[360772039,1747005038786,-5938.0,0.00014887,2]
[360772040,1747005038796,-150.0,0.00014888,2]
[360772041,1747005038806,-150.0,0.00014888,2]
[360772042,1747005038816,-3052.06914218,0.00014888,2]
[360772043,1747005038827,-3052.06914214,0.00014889,2]
[360772044,1747005038837,-3052.06914214,0.00014891,2]
[360772045,1747005038847,-3052.06914214,0.00014892,2]
[360772046,1747005038857,-3052.06914214,0.00014893,2]
[360772047,1747005038867,-3052.06914214,0.00014895,2]
[360772048,1747005038876,-150.0,0.00014895,2]
[360772049,1747005038886,-150.0,0.00014895,2]
[360772050,1747005038895,-3052.06914214,0.00014896,2]
[360772051,1747005038904,-3052.06914214,0.00014897,2]
[360772052,1747005038914,-3052.06914214,0.00014899,2]
[360772053,1747005038923,-821.69904255,0.00014899,2]
[360772054,1747005038933,-9383.72639998,0.000149,2]
[360772055,1747005038942,-3052.06914214,0.000149,2]
[360772056,1747005038951,-153.3588723,0.000149,2]
[360772057,1747005038960,-190.78567091,0.000149,2]
[360772058,1747005038971,-150.0,0.00014902,2]
[360772059,1747005038980,-150.0,0.00014908,2]
[360772060,1747005038990,-150.0,0.00014908,2]
[360772061,1747005038999,-150.0,0.0001491,2]
[360772062,1747005039008,-150.0,0.00014911,2]
[360772063,1747005039018,-150.0,0.00014918,2]
[360772064,1747005039027,-150.0,0.00014921,2]
[360772065,1747005039036,-6816.0,0.00014922,2]
[360772066,1747005039046,-879.0,0.00014922,2]
[360772067,1747005039055,-302.0,0.00014922,2]
[360772068,1747005039066,-4026.0,0.00014922,2]
[360772069,1747005039076,-590.00282523,0.00014922,2]
[360772109,1747005040366,-48.68035495,0.00014922,2]
[360772110,1747005040378,-196.31681982,0.00014922,2]
[360772111,1747005040387,-1412.0211789,0.00014924,2]
[360772112,1747005040397,-150.0,0.00014925,2]
[360772113,1747005040406,-150.0,0.00014926,2]
[360772114,1747005040417,-150.0,0.00014927,2]
[360772115,1747005040426,-300.0,0.00014927,2]
[360772116,1747005040436,-150.0,0.00014928,2]
[360772117,1747005040445,-150.0,0.00014929,2]
[360772118,1747005040455,-150.0,0.0001493,2]
[360772119,1747005040464,-150.0,0.00014932,2]
[360772121,1747005040474,-150.0,0.00014933,2]
[360772123,1747005040483,-150.0,0.00014933,2]
[360772124,1747005040493,-150.0,0.00014935,2]
[360772125,1747005040503,-150.0,0.00014935,2]
[360772126,1747005040512,-150.0,0.00014936,2]
[360772127,1747005040522,-150.0,0.00014938,2]
[360772128,1747005040535,-150.0,0.00014938,2]
[360772129,1747005040544,-150.0,0.0001494,2]
[360772130,1747005040554,-150.0,0.00014941,2]
[360772131,1747005040564,-150.0,0.00014943,2]
[360772132,1747005040573,-150.0,0.00014949,2]
[360772133,1747005040585,-710.31986369,0.00014952,2]
[360772135,1747005040595,-150.0,0.00014956,2]
[360772136,1747005040606,-150.0,0.00014958,2]
[360772137,1747005040616,-150.0,0.00014972,2]
[360772138,1747005040625,-500.0,0.00014973,2]
[360772139,1747005040634,-500.0,0.00014973,2]
[360772140,1747005040644,-500.0,0.00014973,2]
[360772141,1747005040653,-161.30369579,0.00014973,2]
[360772142,1747005040662,-211.95351012,0.00014973,2]
[360772143,1747005040672,-500.0,0.00014973,2]
[360772144,1747005040681,-150.0,0.00014979,2]
[360772145,1747005040691,-150.0,0.0001498,2]
[360772146,1747005040700,-150.0,0.0001498,2]
[360772147,1747005040710,-150.0,0.00014983,2]
[360772148,1747005040719,-150.0,0.00014986,2]
[360772149,1747005040728,-2776.042,0.00014987,2]
[360772150,1747005040738,-189.85931161,0.00014987,2]
[360772151,1747005040747,-150.0,0.00014987,2]
[360772152,1747005040757,-8512.87504151,0.00014988,2]
[360772153,1747005040875,-33370.09039478,0.00014988,2]
[360772154,1747005040886,-45783.44867603,0.00014988,2]
[360772155,1747005040897,-5361.38538768,0.00014988,2]
[360772156,1747005040907,-1529.5979186,0.00014988,2]
[360772157,1747005040916,-14352.4986026,0.00014988,2]
[360772158,1747005040926,-768.71557249,0.00014988,2]
[360772169,1747005046123,-571.04747515,0.00014228,2]
[360772170,1747005046133,-502.0,0.00014822,2]
[360772171,1747005046144,-2264.40911661,0.00014988,2]
[360772172,1747005046154,-3094.61453814,0.00014988,2]
[360772173,1747005046337,-2895.28381325,0.00014988,2]
[360772177,1747005047743,-164.41122627,0.00014228,2]
[360772178,1747005056649,-17.41672461,0.00014228,2]
[360772182,1747005123028,773.77,0.00013699,2]
[360772190,1747005438071,23900.0,0.0001387,2]
[360772191,1747005509114,235.46,0.00013874,2]
[360772192,1747005595524,400.0,0.00028,120]
[360772193,1747005633543,158.18,0.00013873,2]
[360772194,1747005901348,1312.53,0.00013862,2]
[360772197,1747005952443,250.0,0.00013865,2]
[360772200,1747005976576,1237.84,0.00011947,2]
[360772201,1747005978237,-243.81970837,0.00014211,2]
[360772202,1747005989941,-233.29908279,0.00014211,2]
[360772203,1747006005051,-253.28277552,0.0001421,2]
[360772204,1747006019992,-41.74666724,0.0001421,2]
[360772205,1747006020021,-208.25333276,0.00014211,2]
[360772223,1747006037357,-250.0,0.00014211,2]
[360772224,1747006050090,-172.46277441,0.00014211,2]
[360772227,1747006066192,-130.00510167,0.00014211,2]
[360772228,1747006074606,5524.66017603,0.0001,2]
[360772230,1747006122225,1367.34318112,0.00010136,2]
[360772231,1747006135891,167.64238623,0.00014142,2]
[360772236,1747006153004,735.08,0.00013699,2]
[360772241,1747006172799,2173.3,0.00027999,120]
[360772260,1747006232149,-173.4,0.00014277,2]
[360772262,1747006232159,-126.6,0.00014302,2]
[360772266,1747006232257,-123.4,0.00014302,2]
[360772267,1747006232267,-821.69904255,0.00014646,2]
[360772268,1747006232276,-150.0,0.00014729,2]
[360772269,1747006232286,-150.0,0.00014731,2]
[360772270,1747006232296,-150.0,0.00014731,2]
[360772271,1747006232306,-150.0,0.00014734,2]
[360772272,1747006232316,-150.0,0.00014735,2]
[360772273,1747006232326,-629.68015107,0.00014735,2]
[360772274,1747006232336,-150.0,0.00014737,2]
[360772275,1747006232345,-150.0,0.00014738,2]
[360772276,1747006232355,-151.0,0.00014739,2]
[360772277,1747006232365,-668.65185757,0.00014739,2]
[360772278,1747006232375,-207.4,0.00014739,2]
[360772279,1747006232385,-150.0,0.00014741,2]
[360772280,1747006232395,-1200.0,0.00014745,2]
[360772281,1747006232404,-300.0,0.00014745,2]
[360772282,1747006232414,-150.0,0.00014746,2]
[360772283,1747006232424,-150.0,0.00014746,2]
[360772284,1747006232434,-150.0,0.00014746,2]
[360772285,1747006232444,-166.77890942,0.00014747,2]
[360772286,1747006232454,-223.35622503,0.00014747,2]
[360772287,1747006232464,-150.0,0.00014747,2]
[360772288,1747006232473,-150.0,0.00014747,2]
[360772289,1747006232483,-150.0,0.00014748,2]
[360772290,1747006232492,-9999.99,0.00014748,2]
[360772291,1747006232502,-150.99,0.00014748,2]
[360772292,1747006232511,-9999.99,0.00014748,2]
[360772293,1747006232520,-150.0,0.00014753,2]
[360772294,1747006232530,-150.0,0.00014755,2]
[360772295,1747006232539,-150.0,0.0001476,2]
[360772296,1747006232548,-150.0,0.00014762,2]
[360772297,1747006232558,-150.0,0.00014762,2]
[360772298,1747006232568,-150.0,0.00014764,2]
[360772299,1747006232578,-150.0,0.00014768,2]
[360772301,1747006232587,-150.0,0.00014773,2]
[360772304,1747006232596,-150.0,0.00014775,2]
[360772307,1747006232606,-150.0,0.00014781,2]
[360772309,1747006232615,-150.0,0.00014785,2]
[360772311,1747006232624,-150.0,0.00014786,2]
[360772314,1747006232634,-150.0,0.00014786,2]
[360772316,1747006232643,-150.0,0.00014794,2]
[360772317,1747006232652,-500.0,0.00014795,2]
[360772318,1747006232662,-500.0,0.00014795,2]
[360772319,1747006232671,-500.0,0.00014795,2]
[360772320,1747006232681,-500.0,0.00014795,2]
[360772321,1747006232691,-500.0,0.00014795,2]
[360772322,1747006232700,-500.0,0.00014795,2]
[360772323,1747006232709,-556.019646,0.00014795,2]
[360772324,1747006232719,-150.0,0.00014797,2]
[360772325,1747006232728,-150.0,0.00014799,2]
[360772326,1747006232737,-150.0,0.00014801,2]
[360772327,1747006232747,-150.0,0.00014803,2]
[360772328,1747006232756,-150.0,0.00014804,2]
[360772329,1747006232766,-150.0,0.00014809,2]
[360772330,1747006232776,-150.0,0.0001481,2]
[360772331,1747006232786,-150.0,0.00014819,2]
[360772332,1747006232795,-150.0,0.00014826,2]
[360772333,1747006232804,-150.0,0.00014842,2]
[360772334,1747006232814,-150.0,0.00014843,2]
[360772335,1747006232823,-150.0,0.00014847,2]
[360772336,1747006232832,-150.0,0.00014849,2]
[360772337,1747006232841,-150.0,0.00014852,2]
[360772338,1747006232851,-150.0,0.00014853,2]
[360772339,1747006232860,-150.0,0.00014855,2]
[360772340,1747006232869,-150.0,0.00014858,2]
[360772341,1747006232878,-150.0,0.00014858,2]
[360772342,1747006232888,-150.0,0.00014858,2]
[360772343,1747006232897,-150.0,0.00014858,2]
[360772344,1747006232907,-150.0,0.0001486,2]
[360772345,1747006232916,-150.0,0.00014862,2]
[360772346,1747006232926,-150.0,0.00014864,2]
[360772347,1747006232937,-150.0,0.00014865,2]
[360772348,1747006232946,-150.0,0.00014866,2]
[360772349,1747006232957,-150.0,0.00014868,2]
[360772350,1747006232969,-150.0,0.00014868,2]
[360772351,1747006232985,-150.0,0.00014872,2]
[360772352,1747006232995,-150.0,0.00014879,2]
[360772353,1747006233004,-200.0,0.0001488,2]
[360772354,1747006233014,-150.0,0.00014887,2]
[360772355,1747006233024,-426.42,0.00014888,2]
[360772356,1747006233034,-5815.3398,0.00014888,2]
[360772357,1747006233043,-158.96254415,0.00014888,2]
[360772358,1747006233054,-184.04854354,0.00014888,2]
[360772359,1747006233063,-150.0,0.00014889,2]
[360772360,1747006233073,-150.0,0.0001489,2]
[360772361,1747006233082,-150.0,0.00014891,2]
[360772362,1747006233092,-150.0,0.00014893,2]
[360772363,1747006233101,-150.0,0.00014893,2]
[360772364,1747006233110,-150.0,0.00014894,2]
[360772365,1747006233120,-150.0,0.00014896,2]
[360772366,1747006233129,-150.0,0.00014896,2]
[360772367,1747006233138,-150.0,0.00014899,2]
[360772368,1747006233148,-200.145017,0.00014899,2]
[360772369,1747006233157,-150.0,0.00014899,2]
[360772370,1747006233166,-150.0,0.000149,2]
[360772371,1747006233176,-5720.65068882,0.000149,2]
[360772372,1747006233185,-1000.0,0.000149,2]
[360772373,1747006233195,-150.0,0.00014901,2]
[360772374,1747006233204,-150.0,0.0001491,2]
[360772375,1747006233214,-150.0,0.00014911,2]
[360772376,1747006233224,-150.0,0.00014915,2]
[360772377,1747006233233,-2368.8353727,0.00014924,2]
[360772378,1747006233244,-150.0,0.00014926,2]
[360772379,1747006233253,-300.0,0.00014927,2]
[360772380,1747006233263,-150.0,0.0001493,2]
[360772381,1747006233272,-150.0,0.0001493,2]
[360772382,1747006233281,-150.0,0.0001493,2]
[360772383,1747006233291,-150.0,0.00014937,2]
[360772384,1747006233300,-150.0,0.00014941,2]
[360772385,1747006233310,-150.0,0.00014941,2]
[360772386,1747006233319,-150.0,0.00014943,2]
[360772387,1747006233329,-10.46738987,0.00014945,2]
[360772388,1747006234341,-150.0,0.00014833,2]
[360772389,1747006234350,-139.53261013,0.00014945,2]
[360772390,1747006234360,-150.0,0.00014946,2]
[360772391,1747006234369,-150.0,0.00014948,2]
[360772392,1747006234378,-150.0,0.00014949,2]
[360772393,1747006234388,-150.0,0.00014951,2]
[360772394,1747006234397,-150.0,0.00014955,2]
[360772395,1747006234406,-150.0,0.00014957,2]
[360772396,1747006234416,-150.0,0.00014957,2]
[360772397,1747006234425,-891.0,0.00014959,2]
[360772398,1747006234434,-150.0,0.00014964,2]
[360772399,1747006234444,-296.39143164,0.00014967,2]
[360772400,1747006234453,-150.0,0.00014968,2]
[360772401,1747006234463,-150.0,0.00014968,2]
[360772402,1747006234472,-151.75508188,0.00014969,2]
[360772403,1747006234481,-500.0,0.00014973,2]
[360772404,1747006234492,-500.0,0.00014973,2]
[360772405,1747006234501,-503.82522634,0.00014973,2]
[360772406,1747006234511,-500.0,0.00014973,2]
[360772407,1747006234522,-500.0,0.00014973,2]
[360772408,1747006234533,-500.0,0.00014973,2]
[360772409,1747006234542,-500.0,0.00014973,2]
[360772410,1747006234553,-500.0,0.00014973,2]
[360772411,1747006234563,-501.04190365,0.00014973,2]
[360772412,1747006234572,-500.0,0.00014973,2]
[360772413,1747006234582,-500.0,0.00014973,2]
[360772414,1747006234591,-500.0,0.00014973,2]
[360772415,1747006234601,-500.0,0.00014973,2]
[360772416,1747006234611,-500.0,0.00014973,2]
[360772417,1747006234622,-150.0,0.00014974,2]
[360772418,1747006234631,-150.0,0.00014975,2]
[360772419,1747006234640,-150.0,0.00014978,2]
[360772420,1747006234650,-150.0,0.00014978,2]
[360772421,1747006234660,-150.0,0.0001498,2]
[360772422,1747006234669,-289.68013631,0.00014981,2]
[360772423,1747006234678,-150.0,0.00014981,2]
[360772424,1747006234688,-150.0,0.00014982,2]
[360772425,1747006234697,-150.0,0.00014984,2]
[360772426,1747006234706,-150.0,0.00014984,2]
[360772427,1747006234716,-3613.9,0.00014986,2]
[360772428,1747006234726,-3613.9,0.00014986,2]
[360772429,1747006234735,-400.0,0.00014986,2]
[360772430,1747006234744,-400.0,0.00014986,2]
[360772431,1747006234754,-958.02,0.00014986,2]
[360772432,1747006234763,-958.02,0.00014986,2]
[360772433,1747006234772,-876.14,0.00014986,2]
[360772434,1747006234782,-876.14,0.00014986,2]
[360772435,1747006234792,-5311.91,0.00014986,2]
[360772436,1747006234801,-5311.91,0.00014986,2]
[360772437,1747006234810,-2085.14,0.00014986,2]
[360772438,1747006234819,-2085.14,0.00014986,2]
[360772439,1747006234829,-400.0,0.00014986,2]
[360772440,1747006234838,-400.0,0.00014986,2]
[360772441,1747006234849,-4441.6698921,0.00014986,2]
[360772442,1747006234862,-841.8301079,0.00014986,2]
[360772443,1747006234873,-5283.5,0.00014986,2]
[360772444,1747006234884,-927.33,0.00014986,2]
[360772445,1747006234895,-400.0,0.00014986,2]
[360772446,1747006234904,-927.33,0.00014986,2]
[360772447,1747006234914,-400.0,0.00014986,2]
[360772448,1747006234924,-2293.3,0.00014986,2]
[360772449,1747006234934,-2293.3,0.00014986,2]
[360772450,1747006234944,-692.98,0.00014986,2]
[360772451,1747006234954,-692.98,0.00014986,2]
[360772452,1747006234963,-400.0,0.00014986,2]
[360772453,1747006234979,-400.0,0.00014986,2]
[360772454,1747006234992,-627.8,0.00014986,2]
[360772455,1747006235004,-627.8,0.00014986,2]
[360772456,1747006235015,-466.33,0.00014986,2]
[360772457,1747006235028,-466.33,0.00014986,2]
[360772458,1747006235038,-644.17,0.00014986,2]
[360772459,1747006235048,-644.17,0.00014986,2]
[360772460,1747006235059,-8610.06769765,0.00014986,2]
[360772461,1747006235084,-150.0,0.0001479,2]
[360772462,1747006235093,-659.15148806,0.00014986,2]
[360772463,1747006235115,-3490.89081429,0.00014986,2]
[360772464,1747006235124,-754.22456491,0.00014986,2]
[360772465,1747006238135,-150.0,0.00014873,2]
[360772466,1747006238147,-12005.88543509,0.00014986,2]
[360772467,1747006238158,-400.0,0.00014986,2]
[360772468,1747006238169,-374.86474267,0.00014986,2]
[360772469,1747006238178,-3520.19,0.00014986,2]
[360772470,1747006238190,-3520.19,0.00014986,2]
[360772471,1747006238201,-5276.7,0.00014986,2]
[360772472,1747006238210,-5276.7,0.00014986,2]
[360772473,1747006238219,-500.36002603,0.00014986,2]
[360772474,1747006238229,-1548.54,0.00014986,2]
[360772475,1747006238239,-1548.54,0.00014986,2]